bitfinex/quotes_SOLUSD_20220212
["timestamp","ask_amount","ask_price","bid_price","bid_amount"]
[1644708739556,103.9,95.58,95.499,22.5677]
[1644708739760,119.6035,95.58,95.499,22.5677]
[1644708739989,103.9,95.578,95.499,22.5677]
[1644708740159,150.39832892,95.577,95.499,22.5677]
[1644708740357,145.16632892,95.577,95.497,36.4670449]
[1644708740563,103.9,95.575,95.498,0.25]
[1644708740758,103.9,95.573,95.498,0.25]
[1644708740957,103.9,95.569,95.497,36.4670449]
[1644708741359,103.9,95.569,95.498,0.25]
[1644708741569,5.232,95.568,95.498,0.25]
[1644708741961,5.232,95.568,95.476,0.52348943]
[1644708742159,22.6762,95.567,95.476,0.52348943]
[1644708742361,15.7069,95.56,95.452,21.26948943]
[1644708742568,14.99,95.55,95.452,21.26948943]
[1644708742760,54.1007,95.549,95.452,21.26948943]
[1644708742961,38.60209807,95.548,95.453,41.32234749]
[1644708743161,5.235,95.547,95.453,41.32234749]
[1644708743363,103.9,95.547,95.453,41.32234749]
[1644708743764,103.9,95.547,95.454,0.25]
[1644708743965,5.235,95.546,95.454,0.25]
[1644708744767,103.9,95.545,95.454,0.25]
[1644708745170,103.9,95.543,95.454,2.87390296]
[1644708745367,14.99,95.54,95.454,2.87390296]
[1644708746668,5.235,95.539,95.454,2.87390296]
[1644708746868,103.9,95.538,95.46,15.7077]
[1644708747068,109.135,95.537,95.46,15.7077]
[1644708747268,103.9,95.537,95.46,15.7077]
[1644708747486,5.235,95.536,95.46,15.7077]
[1644708748785,14.99,95.54,95.46,15.7077]
[1644708748985,14.99,95.54,95.46,18.33160296]
[1644708749286,5.235,95.547,95.46,18.33160296]
[1644708749486,23.4791,95.559,95.46,18.33160296]
[1644708749786,104.15,95.558,95.453,41.32234749]
[1644708749984,103.9,95.556,95.453,41.32234749]
[1644708750189,103.9,95.554,95.453,41.32234749]
[1644708750485,14.99,95.55,95.453,41.32234749]
[1644708750684,103.9,95.549,95.454,0.024]
[1644708750888,109.135,95.549,95.454,0.274]
[1644708751086,5.235,95.549,95.455,0.024]
[1644708751287,14.99,95.55,95.455,0.024]
[1644708751486,14.99,95.55,95.456,2.62390296]
[1644708751692,5.235,95.558,95.46,14.99]
[1644708751886,5.235,95.566,95.461,0.024]
[1644708752086,4.36418439,95.629,95.49,15.7002]
[1644708752087,5.235,95.583,95.49,15.7002]
[1644708752286,28.5507,95.599,95.491,0.024]
[1644708752488,46.53603385,95.598,95.491,30.20467191]
[1644708752692,5.232,95.597,95.492,0.024]
[1644708752886,5.232,95.597,95.492,2.64790296]
[1644708753089,5.232,95.597,95.493,27.03680296]
[1644708753390,103.9,95.596,95.5,15.6996]
[1644708753590,10.69669194,95.595,95.501,0.024]
[1644708753794,14.99,95.59,95.495,0.024]
[1644708753990,109.132,95.589,95.492,0.024]
[1644708754191,139.22979194,95.589,95.492,0.024]
[1644708754391,103.9,95.587,95.492,0.024]
[1644708754593,10.69669194,95.586,95.492,0.024]
[1644708754793,30.30229194,95.585,95.492,0.024]
[1644708754993,14.99,95.58,95.492,0.024]
[1644708755196,43.97248007,95.578,95.492,0.024]
[1644708755395,5.232,95.577,95.492,0.024]
[1644708755794,15.7053,95.57,95.492,0.024]
[1644708755994,14.99,95.56,95.492,0.024]
[1644708756297,1.45090573,95.552,95.491,24.8805]
[1644708756494,5.234,95.551,95.491,24.8805]
[1644708756894,145.78126225,95.55,95.491,24.8805]
[1644708757095,145.78126225,95.55,95.491,24.3805]
[1644708757296,5.234,95.549,95.491,24.3805]
[1644708758700,103.9,95.548,95.491,24.3805]
[1644708758899,5.234,95.547,95.491,24.3805]
[1644708759699,0.25,95.546,95.491,24.3805]
[1644708759900,5.234,95.545,95.491,24.3805]
[1644708760500,6.68490573,95.545,95.491,24.3805]
[1644708761404,5.234,95.545,95.491,24.3805]
[1644708761602,1.45090573,95.544,95.491,24.3805]
[1644708761805,5.234,95.543,95.491,24.3805]
[1644708762002,1.45090573,95.542,95.491,24.3805]
[1644708762202,1.45090573,95.54,95.483,36.5591002]
[1644708762503,105.35090573,95.54,95.483,36.5591002]
[1644708762705,1.45090573,95.539,95.483,36.5591002]
[1644708762911,1.45090573,95.529,95.483,36.5591002]
[1644708763110,1.45090573,95.532,95.483,36.5591002]
[1644708763707,1.45090573,95.531,95.483,36.5591002]
[1644708763911,1.45090573,95.532,95.483,36.5591002]
[1644708764109,1.45090573,95.531,95.484,0.25]
[1644708764311,1.45090573,95.535,95.484,0.25]
[1644708764509,1.45090573,95.514,95.484,0.25]
[1644708764710,1.45090573,95.515,95.484,0.25]
[1644708764910,1.45090573,95.516,95.485,0.024]
[1644708765114,1.45090573,95.516,95.484,0.25]
[1644708765315,1.45090573,95.52,95.484,0.25]
[1644708765516,1.45090573,95.52,95.485,0.024]
[1644708765813,1.45090573,95.52,95.49,15.7035]
[1644708766918,1.45090573,95.517,95.49,15.7035]
[1644708767116,2.9224549,95.543,95.49,15.7035]
[1644708767318,2.9224549,95.548,95.49,15.7035]
[1644708767515,2.9224549,95.549,95.5,15.7019]
[1644708767817,2.9224549,95.547,95.5,15.7019]
[1644708768016,5.5069031,95.548,95.5,15.7259]
[1644708768218,2.9224549,95.554,95.501,8.61251347]
[1644708768416,2.9224549,95.555,95.501,8.61251347]
[1644708769016,2.9224549,95.556,95.501,8.61251347]
[1644708769517,2.9224549,95.554,95.501,8.61251347]
[1644708769718,2.9224549,95.553,95.501,8.61251347]
[1644708770117,2.9224549,95.554,95.501,8.61251347]
[1644708770521,2.9224549,95.558,95.501,8.61251347]
[1644708770722,2.9224549,95.564,95.51,15.7002]
[1644708770921,2.9224549,95.569,95.51,15.7002]
[1644708771318,2.9224549,95.573,95.51,15.7002]
[1644708771519,2.9224549,95.576,95.511,0.024]
[1644708771721,2.9224549,95.578,95.508,2.62390296]
[1644708771921,2.9224549,95.58,95.509,24.6874]
[1644708772122,2.9224549,95.581,95.509,24.6634]
[1644708772322,2.9224549,95.584,95.509,24.6634]
[1644708772524,2.9224549,95.583,95.51,0.024]
[1644708772722,2.9224549,95.584,95.53,15.697]
[1644708772923,2.9224549,95.585,95.53,15.697]
[1644708773123,2.9224549,95.589,95.531,36.5591002]
[1644708773745,5.5069031,95.593,95.531,36.5591002]
[1644708773924,5.232,95.593,95.531,36.5591002]
[1644708774125,5.5069031,95.592,95.531,36.5591002]
[1644708774326,5.232,95.594,95.531,36.5591002]
[1644708774524,5.5069031,95.593,95.531,36.5591002]
[1644708775827,5.232,95.594,95.531,36.5591002]
[1644708776026,5.232,95.597,95.531,36.5591002]
[1644708776334,5.5259961,95.596,95.531,36.5591002]
[1644708776531,5.232,95.602,95.54,15.6951]
[1644708776729,2.9224549,95.605,95.54,15.6951]
[1644708776929,5.232,95.611,95.54,15.6951]
[1644708777130,5.52663919,95.61,95.54,15.6951]
[1644708777531,2.9224549,95.611,95.54,15.6951]
[1644708777731,2.9224549,95.613,95.54,15.6951]
[1644708777930,2.9224549,95.617,95.541,0.024]
[1644708778129,109.42663919,95.634,95.541,0.024]
[1644708778130,2.9224549,95.621,95.55,15.6925]
[1644708778333,2.9224549,95.621,95.551,8.61251347]
[1644708778529,2.9224549,95.626,95.551,8.61251347]
[1644708778931,0.25,95.625,95.551,8.61251347]
[1644708779131,5.52663919,95.624,95.551,8.61251347]
[1644708779729,5.52663919,95.624,95.56,15.6916]
[1644708781032,5.23,95.623,95.56,15.6916]
[1644708781256,5.48,95.623,95.56,15.6916]
[1644708781455,0.25,95.623,95.56,15.6916]
[1644708781655,5.23,95.622,95.56,15.6916]
[1644708782755,2.9224549,95.635,95.56,15.6916]
[1644708782956,5.51840705,95.635,95.56,15.6916]
[1644708783257,5.23,95.636,95.56,15.6916]
[1644708783458,5.23,95.64,95.56,15.6916]
[1644708783657,5.23,95.643,95.561,22.6122]
[1644708783855,5.229,95.644,95.571,36.5591002]
[1644708784057,10.99442861,95.642,95.571,36.5591002]
[1644708784256,0.25,95.642,95.571,36.5591002]
[1644708784455,5.229,95.641,95.571,36.5591002]
[1644708784856,103.9,95.64,95.571,36.5591002]
[1644708785057,5.229,95.639,95.571,36.5591002]
[1644708785256,5.51352584,95.638,95.571,36.5591002]
[1644708785456,5.229,95.637,95.571,36.5591002]
[1644708785655,42.83413112,95.634,95.571,36.5591002]
[1644708786455,2.9224549,95.643,95.571,36.5591002]
[1644708786656,5.229,95.666,95.571,36.5591002]
[1644708786657,5.51381752,95.656,95.571,36.5591002]
[1644708786857,10.74281752,95.656,95.572,23.522]
[1644708787258,5.229,95.656,95.572,23.522]
[1644708787860,5.229,95.656,95.58,15.6886]
[1644708788670,103.9,95.655,95.572,23.522]
[1644708788863,103.9,95.652,95.572,23.522]
[1644708789264,0.25,95.651,95.572,23.522]
[1644708789464,103.9,95.649,95.572,23.522]
[1644708789664,5.229,95.648,95.572,23.522]
[1644708789864,103.9,95.647,95.572,23.522]
[1644708790064,106.52390296,95.647,95.571,36.5591002]
[1644708790365,103.9,95.645,95.544,0.024]
[1644708790565,103.9,95.645,95.542,0.024]
[1644708790764,103.9,95.643,95.542,0.024]
[1644708791169,5.23,95.645,95.542,0.024]
[1644708791170,103.9,95.641,95.542,43.04464273]
[1644708791366,103.9,95.641,95.543,0.024]
[1644708791565,103.9,95.639,95.543,0.024]
[1644708791866,103.9,95.629,95.543,0.024]
[1644708792071,103.9,95.627,95.543,0.024]
[1644708792767,103.9,95.627,95.542,43.02064273]
[1644708792966,103.9,95.625,95.542,43.02064273]
[1644708793166,103.9,95.625,95.534,0.024]
[1644708793366,103.9,95.623,95.511,0.024]
[1644708793566,5.51238219,95.622,95.511,0.024]
[1644708793770,15.6974,95.62,95.53,15.6971]
[1644708793967,103.9,95.618,95.531,0.024]
[1644708794166,103.9,95.616,95.531,42.20910558]
[1644708794369,5.51238219,95.615,95.531,42.18510558]
[1644708794566,33.72328219,95.615,95.532,0.024]
[1644708794767,103.9,95.614,95.532,0.024]
[1644708794966,103.9,95.612,95.532,0.024]
[1644708795169,5.231,95.611,95.532,0.024]
[1644708795369,103.9,95.61,95.532,0.024]
[1644708795768,103.9,95.608,95.532,0.024]
[1644708796069,103.9,95.606,95.532,0.024]
[1644708796468,103.9,95.604,95.532,0.024]
[1644708796869,15.6988,95.61,95.532,0.024]
[1644708796870,103.9,95.599,95.532,0.024]
[1644708797069,2.62390296,95.609,95.531,42.18510558]
[1644708797070,103.9,95.589,95.531,42.18510558]
[1644708797267,5.51878395,95.588,95.532,0.024]
[1644708797467,109.41878395,95.588,95.531,42.18510558]
[1644708797670,103.9,95.588,95.531,42.18510558]
[1644708798272,15.7044,95.58,95.531,42.18510558]
[1644708798472,103.9,95.579,95.5,15.7024]
[1644708798681,103.9,95.579,95.478,0.024]
[1644708798682,128.1791,95.579,95.501,0.024]
[1644708798874,128.1791,95.579,95.478,23.7225]
[1644708798875,128.1791,95.579,95.479,0.024]
[1644708799471,128.1791,95.579,95.479,43.93476444]
[1644708799472,45.27487156,95.578,95.479,43.93476444]
[1644708799672,15.7054,95.57,95.48,15.7286]
[1644708799872,5.234,95.569,95.481,0.024]
[1644708800773,15.7068,95.56,95.481,0.024]
[1644708800973,41.67484277,95.558,95.481,0.024]
[1644708801379,103.9,95.557,95.481,0.024]
[1644708801573,103.9,95.555,95.481,0.024]
[1644708801982,5.234,95.554,95.481,0.024]
[1644708802175,103.9,95.553,95.481,0.024]
[1644708802573,5.234,95.552,95.481,0.024]
[1644708802774,15.7086,95.55,95.48,0.25]
[1644708802975,109.134,95.549,95.48,0.25]
[1644708812384,15.7086,95.55,95.48,0.25]
[1644708812585,5.234,95.557,95.48,0.25]
[1644708812984,41.67484277,95.558,95.481,0.024]
[1644708813186,41.67484277,95.558,95.49,15.7036]
[1644708813385,5.234,95.557,95.491,3.70543144]
[1644708813985,5.234,95.558,95.491,3.70543144]
[1644708814184,29.4496,95.589,95.492,0.024]
[1644708814388,29.4496,95.589,95.5,15.7028]
[1644708814586,24.2156,95.589,95.5,15.7028]
[1644708814785,5.232,95.598,95.493,0.024]
[1644708814786,5.232,95.598,95.501,0.024]
[1644708815012,5.232,95.611,95.501,106.52390296]
[1644708815185,5.232,95.609,95.51,52.3241]
[1644708815386,5.232,95.612,95.511,24.6283]
[1644708815587,5.232,95.612,95.512,0.024]
[1644708815785,5.232,95.612,95.512,23.66176964]
[1644708815985,5.232,95.612,95.513,41.49018223]
[1644708816185,5.232,95.612,95.513,65.12795187]
[1644708816387,0.25,95.611,95.514,2.62390296]
[1644708816587,0.25,95.611,95.52,15.6973]
[1644708816786,0.25,95.611,95.53,52.3083]
[1644708816988,0.25,95.611,95.531,46.3838]
[1644708817487,2.9224549,95.637,95.532,6.3293344]
[1644708817693,10.7573545,95.641,95.532,6.3293344]
[1644708817893,5.5273545,95.64,95.533,2.62390296]
[1644708818093,5.23,95.639,95.533,2.62390296]
[1644708818294,5.5273545,95.638,95.533,2.62390296]
[1644708818494,5.23,95.648,95.534,20.99201306]
[1644708818697,5.23,95.638,95.535,103.9]
[1644708818895,43.47895182,95.647,95.541,103.9]
[1644708819099,10.7645525,95.646,95.55,52.2983]
[1644708819297,5.23,95.646,95.551,41.42417616]
[1644708819699,5.53985537,95.645,95.551,44.04807912]
[1644708819901,5.23,95.644,95.551,44.04807912]
[1644708820500,5.23,95.646,95.551,44.04807912]
[1644708820798,5.23,95.646,95.57,15.6895]
[1644708820997,5.23,95.646,95.571,3.74743751]
[1644708822817,5.23,95.646,95.58,15.6893]
[1644708826222,0.25,95.647,95.58,15.6893]
[1644708826824,5.229,95.646,95.58,15.6893]
[1644708829634,5.229,95.646,95.543,23.835]
[1644708830428,15.6936,95.64,95.543,23.835]
[1644708830630,103.9,95.638,95.544,38.70067108]
[1644708830827,103.9,95.636,95.544,38.70067108]
[1644708831126,46.74183472,95.633,95.544,38.70067108]
[1644708831329,103.9,95.632,95.544,38.70067108]
[1644708831528,109.13,95.632,95.544,38.70067108]
[1644708831727,103.9,95.629,95.544,38.70067108]
[1644708832028,103.9,95.627,95.544,38.70067108]
[1644708832429,103.9,95.627,95.521,22.746]
[1644708832430,5.23,95.626,95.521,22.746]
[1644708833030,103.9,95.625,95.521,22.746]
[1644708833430,14.99,95.62,95.53,33.23345995]
[1644708833629,103.9,95.617,95.53,33.23345995]
[1644708833829,5.231,95.616,95.54,15.6953]
[1644708834031,103.9,95.615,95.54,15.6953]
[1644708836432,41.28668987,95.618,95.54,15.6953]
[1644708836636,103.9,95.617,95.54,15.6953]
[1644708837934,5.231,95.616,95.54,15.6953]
[1644708838434,103.9,95.615,95.54,15.6953]
[1644708838834,103.9,95.613,95.541,0.25]
[1644708839134,103.9,95.613,95.54,15.6953]
[1644708839334,103.9,95.611,95.54,15.6953]
[1644708839736,5.481,95.61,95.541,0.25]
[1644708839935,5.231,95.616,95.541,0.25]
[1644708840934,5.231,95.616,95.55,15.6947]
[1644708841134,23.5821,95.617,95.551,11.93815372]
[1644708841334,0.25,95.615,95.551,11.93815372]
[1644708846137,5.231,95.614,95.551,11.93815372]
[1644708849245,5.231,95.614,95.55,15.6947]
[1644708849445,0.25,95.615,95.55,15.6947]
[1644708850244,0.25,95.615,95.551,38.60344929]
[1644708850445,5.231,95.614,95.551,38.60344929]
[1644708851359,5.231,95.614,95.55,15.6947]
[1644708851548,0.25,95.615,95.541,0.25]
[1644708851749,10.79386412,95.613,95.541,0.25]
[1644708851948,2.9224549,95.612,95.541,0.25]
[1644708852248,103.9,95.61,95.541,0.25]
[1644708852449,103.9,95.608,95.541,0.25]
[1644708852649,103.9,95.606,95.541,0.25]
[1644708853048,5.56286412,95.605,95.541,0.25]
[1644708853251,10.79386412,95.605,95.541,0.25]
[1644708853449,5.56286412,95.604,95.541,0.25]
[1644708853654,45.7869336,95.603,95.541,0.25]
[1644708853852,5.56286412,95.602,95.541,0.25]
[1644708854053,5.231,95.601,95.541,0.25]
[1644708854452,5.56335353,95.6,95.541,0.25]
[1644708854653,114.69435353,95.6,95.53,15.6965]
[1644708854953,114.69435353,95.6,95.521,22.746]
[1644708855156,5.56335353,95.599,95.522,0.25]
[1644708855359,5.232,95.598,95.522,0.25]
[1644708855557,5.56335353,95.597,95.522,0.25]
[1644708855760,103.9,95.596,95.522,0.25]
[1644708855957,5.232,95.595,95.522,0.25]
[1644708856160,5.232,95.595,95.508,23.2548]
[1644708856161,103.9,95.594,95.508,23.2548]
[1644708856360,14.99,95.59,95.508,23.2548]
[1644708856559,2.9224549,95.588,95.492,23.9201]
[1644708856759,2.9224549,95.582,95.493,0.024]
[1644708856958,5.56565748,95.588,95.493,0.024]
[1644708856959,2.9224549,95.581,95.493,0.024]
[1644708857161,54.78053153,95.58,95.493,42.57919438]
[1644708857359,103.9,95.578,95.494,0.024]
[1644708857560,5.56565748,95.577,95.494,0.274]
[1644708857760,5.232,95.576,95.495,0.024]
[1644708857963,103.9,95.575,95.495,0.024]
[1644708858163,103.9,95.573,95.495,0.024]
[1644708858365,103.9,95.571,95.494,0.024]
[1644708858562,103.9,95.571,95.471,0.024]
[1644708858762,103.9,95.559,95.472,0.024]
[1644708858962,15.7093,95.55,95.472,0.024]
[1644708859161,103.9,95.549,95.461,31.97695449]
[1644708859362,109.135,95.549,95.462,0.024]
[1644708859760,109.135,95.549,95.462,0.274]
[1644708859961,109.135,95.549,95.463,0.024]
[1644708860363,5.235,95.549,95.47,15.7078]
[1644708860564,5.235,95.549,95.471,0.024]
[1644708860762,56.92886734,95.558,95.471,2.64790296]
[1644708860763,5.235,95.557,95.471,2.64790296]
[1644708860965,5.235,95.557,95.471,2.62390296]
[1644708861163,5.235,95.557,95.462,0.25]
[1644708861164,34.22516734,95.558,95.472,2.64790296]
[1644708861364,34.22516734,95.558,95.472,2.62390296]
[1644708861563,5.234,95.557,95.473,2.64790296]
[1644708861762,5.234,95.557,95.49,15.7042]
[1644708862262,0.25,95.556,95.49,15.7042]
[1644708862461,5.234,95.555,95.49,15.7042]
[1644708863161,5.234,95.555,95.475,0.024]
[1644708863361,103.9,95.553,95.47,15.7065]
[1644708863665,103.9,95.551,95.471,0.024]
[1644708863885,112.08,95.551,95.471,0.024]
[1644708864086,103.9,95.549,95.463,0.024]
[1644708864384,103.9,95.547,95.463,0.024]
[1644708864786,103.9,95.545,95.463,0.024]
[1644708865186,5.235,95.544,95.463,0.024]
[1644708865391,103.9,95.542,95.463,0.024]
[1644708865787,127.9974,95.541,95.463,0.024]
[1644708867095,24.0974,95.541,95.463,0.024]
[1644708867288,24.0974,95.541,95.47,15.7074]
[1644708868089,24.0974,95.541,95.471,2.62390296]
[1644708868488,24.0974,95.541,95.49,15.7042]
[1644708868692,5.235,95.55,95.49,15.7042]
[1644708869089,5.235,95.55,95.49,18.71637456]
[1644708869090,47.26860867,95.549,95.49,18.71637456]
[1644708869290,5.234,95.548,95.49,18.71637456]
[1644708870791,47.26860867,95.549,95.49,18.71637456]
[1644708871694,0.25,95.548,95.49,18.71637456]
[1644708873395,5.234,95.547,95.49,18.71637456]
[1644708875698,0.25,95.548,95.49,18.71637456]
[1644708876503,0.25,95.548,95.49,15.7042]
[1644708876701,0.25,95.548,95.481,0.024]
[1644708876902,5.234,95.547,95.481,0.024]
[1644708877103,5.234,95.547,95.477,22.7774]
[1644708877702,5.234,95.547,95.478,0.25]
[1644708878404,5.234,95.547,95.463,0.024]
[1644708878902,5.234,95.547,95.453,0.024]
[1644708879104,5.234,95.547,95.451,0.024]
[1644708879703,5.234,95.547,95.451,0.274]
[1644708879902,5.234,95.547,95.452,0.024]
[1644708879903,103.9,95.546,95.452,0.024]
[1644708880105,15.7103,95.54,95.452,0.024]
[1644708880305,103.9,95.529,95.447,0.024]
[1644708880505,103.9,95.527,95.446,0.024]
[1644708881105,103.9,95.525,95.446,0.024]
[1644708881609,15.7134,95.52,95.446,0.024]
[1644708881811,5.236,95.519,95.444,32.20620134]
[1644708882006,103.9,95.518,95.444,32.20620134]
[1644708882209,5.236,95.517,95.444,32.20620134]
[1644708882406,103.9,95.516,95.424,0.024]
[1644708882612,103.9,95.516,95.446,0.25]
[1644708882807,103.9,95.514,95.446,0.25]
[1644708883008,103.9,95.514,95.445,16.0947]
[1644708883309,5.236,95.513,95.445,16.0707]
[1644708883508,5.236,95.513,95.446,0.25]
[1644708883708,5.236,95.519,95.446,0.25]
[1644708883908,103.9,95.518,95.446,0.25]
[1644708884111,103.9,95.516,95.446,0.25]
[1644708884309,103.9,95.516,95.445,16.0707]
[1644708884510,5.236,95.515,95.445,16.0707]
[1644708885009,103.9,95.514,95.445,16.0707]
[1644708885410,103.9,95.512,95.445,16.0707]
[1644708885609,47.94074933,95.511,95.446,0.25]
[1644708885809,53.17674933,95.511,95.445,16.0707]
[1644708886011,15.7151,95.51,95.445,16.0707]
[1644708886210,5.236,95.509,95.446,0.25]
[1644708886413,5.236,95.51,95.445,16.0707]
[1644708886614,5.236,95.508,95.445,16.0707]
[1644708886911,5.236,95.51,95.446,0.25]
[1644708887511,6.70529853,95.51,95.446,0.25]
[1644708887712,20.226,95.51,95.446,0.25]
[1644708888714,5.236,95.51,95.446,0.25]
[1644708888910,5.236,95.51,95.45,15.7113]
[1644708891217,5.236,95.51,95.445,16.0707]
[1644708892017,103.9,95.509,95.445,16.0707]
[1644708892216,5.236,95.508,95.446,0.25]
[1644708894221,5.236,95.51,95.446,0.25]
[1644708895219,5.236,95.51,95.445,16.0707]
[1644708895422,1.46929853,95.504,95.445,16.0707]
[1644708895621,47.94074933,95.511,95.445,16.0707]
[1644708895622,1.46929853,95.501,95.445,16.0707]
[1644708895821,20.227,95.5,95.445,16.0707]
[1644708896020,103.9,95.499,95.445,16.0707]
[1644708896425,14.99,95.5,95.445,16.0707]
[1644708896624,14.99,95.5,95.446,0.25]
[1644708897028,5.237,95.499,95.446,0.25]
[1644708898343,14.99,95.5,95.446,0.25]
[1644708898544,5.237,95.509,95.446,0.25]
[1644708898746,0.25,95.508,95.446,0.25]
[1644708899044,5.236,95.507,95.446,5.56457491]
[1644708900047,5.236,95.507,95.45,15.7116]
[1644708900248,1.46929853,95.516,95.45,15.7116]
[1644708900549,1.46929853,95.518,95.451,0.024]
[1644708900747,1.46929853,95.519,95.446,28.79947491]
[1644708900950,1.46929853,95.523,95.446,28.82347491]
[1644708901154,47.90871433,95.519,95.447,0.024]
[1644708901353,47.90871433,95.519,95.446,28.79947491]
[1644708901551,5.236,95.518,95.446,28.79947491]
[1644708901750,5.236,95.518,95.46,15.71]
[1644708901950,5.236,95.518,95.461,40.35703876]
[1644708902752,5.236,95.518,95.46,15.71]
[1644708902949,5.236,95.518,95.445,16.0707]
[1644708902950,1.46929853,95.502,95.446,0.024]
[1644708903153,1.46929853,95.504,95.445,16.0707]
[1644708903551,6.70629853,95.503,95.445,16.0707]
[1644708903751,42.11101491,95.502,95.445,16.0707]
[1644708903951,43.58031344,95.502,95.445,16.0707]
[1644708904251,1.46929853,95.499,95.445,16.0707]
[1644708904654,5.237,95.498,95.445,16.0707]
[1644708905951,1.46929853,95.488,95.445,16.0707]
[1644708906152,1.46929853,95.489,95.445,16.0707]
[1644708906553,1.46929853,95.49,95.445,16.0707]
[1644708906754,42.11101491,95.502,95.445,16.0707]
[1644708906755,1.46929853,95.491,95.446,41.1582537]
[1644708906955,1.46929853,95.491,95.446,41.4082537]
[1644708907159,1.46929853,95.492,95.446,41.4082537]
[1644708907357,1.46929853,95.501,95.45,14.99]
[1644708907555,1.46929853,95.504,95.45,14.99]
[1644708907755,1.46929853,95.506,95.45,14.99]
[1644708907957,1.46929853,95.508,95.451,0.024]
[1644708908157,4.36418439,95.555,95.45,15.7118]
[1644708908158,1.46929853,95.492,95.45,15.7118]
[1644708908361,1.46929853,95.487,95.45,15.7118]
[1644708908556,1.46929853,95.488,95.45,15.7118]
[1644708908756,1.46929853,95.489,95.45,15.7118]
[1644708908959,1.46929853,95.488,95.451,32.10111152]
[1644708909358,1.46929853,95.488,95.452,0.25]
[1644708909562,1.46929853,95.49,95.452,0.25]
[1644708910559,1.46929853,95.492,95.452,0.25]
[1644708910760,1.46929853,95.492,95.46,15.7104]
[1644708910968,1.46929853,95.502,95.46,15.7104]
[1644708911165,1.46929853,95.506,95.461,23.7585]
[1644708911760,1.46929853,95.507,95.461,23.7585]
[1644708912162,1.46929853,95.506,95.461,23.7585]
[1644708912564,1.46929853,95.509,95.461,23.7585]
[1644708912763,1.46929853,95.509,95.47,15.7077]
[1644708912962,35.06238439,95.56,95.47,15.7077]
[1644708912963,1.46929853,95.51,95.47,15.7077]
[1644708913163,1.46929853,95.514,95.47,15.7077]
[1644708913364,2.9224549,95.541,95.461,23.7585]
[1644708913365,1.46929853,95.526,95.48,14.99]
[1644708913563,1.46929853,95.532,95.48,14.99]
[1644708913763,1.46929853,95.53,95.481,38.54350215]
[1644708913963,1.46929853,95.531,95.481,38.54350215]
[1644708914563,1.46929853,95.528,95.481,38.54350215]
[1644708914764,1.46929853,95.528,95.49,15.7029]
[1644708914968,9.853e-05,95.527,95.49,15.7029]
[1644708915167,2.9224549,95.566,95.49,15.7029]
[1644708915368,2.9224549,95.57,95.49,50.18018694]
[1644708915566,2.9224549,95.577,95.49,50.18018694]
[1644708915966,35.71129916,95.576,95.49,50.18018694]
[1644708916167,5.76268251,95.575,95.49,50.18018694]
[1644708916367,2.9224549,95.587,95.49,52.8040899]
[1644708916570,2.9224549,95.587,95.491,21.07251304]
[1644708916766,2.9224549,95.59,95.51,15.6958]
[1644708916966,5.75461139,95.586,95.511,23.3873]
[1644708917169,0.03991587,95.589,95.511,23.3873]
[1644708917366,2.9224549,95.591,95.512,32.10111152]